bitfinex/quotes_BTCUSD_20260103
["timestamp","ask_amount","ask_price","bid_price","bid_amount"]
[1767435934531,0.02230181,89752.0,89747.0,0.01114243]
[1767435934741,0.01116,89752.0,89747.0,0.01114243]
[1767435935141,0.02230181,89752.0,89746.0,0.01114255]
[1767435935343,0.02230181,89752.0,89747.0,0.01114243]
[1767435937948,0.01116,89752.0,89747.0,0.01114243]
[1767435938557,0.02230181,89752.0,89746.0,0.01114255]
[1767435939164,0.02230181,89752.0,89747.0,0.01114243]
[1767435939512,0.02230181,89752.0,89746.0,0.01114255]
[1767435940718,0.01114193,89751.0,89745.0,0.01114268]
[1767435941441,0.02230181,89752.0,89746.0,0.01114255]
[1767435941644,0.01114193,89751.0,89745.0,0.01114268]
[1767435941842,0.01114206,89750.0,89745.0,0.01114268]
[1767435942070,0.01114193,89751.0,89745.0,0.01114268]
[1767435942745,0.01114193,89751.0,89746.0,0.01114255]
[1767435942947,0.02230181,89752.0,89746.0,0.01114255]
[1767435943147,0.01114193,89751.0,89745.0,0.01114268]
[1767435943388,0.01114193,89751.0,89746.0,0.01114255]
[1767435944281,0.02230181,89752.0,89747.0,0.01114243]
[1767435944489,0.01116,89752.0,89747.0,0.01114243]
[1767435944721,0.01114069,89761.0,89752.0,0.06358438]
[1767435945110,0.01116,89758.0,89755.0,0.01114144]
[1767435945314,0.01116,89758.0,89755.0,0.06684823]
[1767435945649,0.01116,89758.0,89755.0,0.01114144]
[1767435947670,0.01116,89758.0,89754.0,0.01114156]
[1767435947865,0.01116,89758.0,89755.0,0.01114144]
[1767435952837,0.01116,89758.0,89754.0,0.01114156]
[1767435954500,0.01116,89758.0,89753.0,0.06684955]
[1767435954665,0.01116,89758.0,89754.0,0.01114156]
[1767435955644,0.02230106,89758.0,89753.0,0.06684955]
[1767435956122,0.01116,89758.0,89753.0,0.06684955]
[1767435956417,0.01116,89758.0,89754.0,0.01114156]
[1767435957178,0.01116,89758.0,89755.0,0.01114144]
[1767435957383,0.01116,89758.0,89754.0,0.01114156]
[1767435957577,0.01116,89758.0,89755.0,0.01114144]
[1767435958601,0.01114069,89761.0,89755.0,0.01114144]
[1767435958809,0.01114069,89761.0,89756.0,0.01114131]
[1767435959174,0.01114069,89761.0,89755.0,0.01114144]
[1767435960126,0.01114069,89761.0,89756.0,0.06003724]
[1767435960331,0.01114081,89760.0,89755.0,0.01114144]
[1767435960873,0.01129007,89766.0,89757.0,0.01114119]
[1767435961371,0.01114019,89765.0,89760.0,0.01114081]
[1767435961673,0.01114032,89764.0,89759.0,0.01114094]
[1767435961974,0.01114032,89764.0,89758.0,0.01114106]
[1767435962334,0.01114032,89764.0,89759.0,0.01114094]
[1767435962757,0.01114032,89764.0,89758.0,0.01114106]
[1767435963119,0.01114032,89764.0,89759.0,0.01114094]
[1767435963793,0.01114032,89764.0,89758.0,0.01114106]
[1767435967846,0.01114044,89763.0,89757.0,0.01114119]
[1767435968205,0.01114044,89763.0,89758.0,0.01114106]
[1767435968587,0.01114032,89764.0,89759.0,0.01114094]
[1767435968784,0.01114032,89764.0,89758.0,0.01114106]
[1767435968987,0.01114032,89764.0,89759.0,0.01114094]
[1767435969183,0.01114044,89763.0,89758.0,0.01114106]
[1767435969405,0.01114032,89764.0,89758.0,0.01114106]
[1767435969569,0.01114057,89762.0,89756.0,0.01114131]
[1767435969770,0.01114044,89763.0,89758.0,0.01114106]
[1767435970050,0.01114044,89763.0,89756.0,0.01114131]
[1767435970590,0.01114069,89761.0,89756.0,0.01114131]
[1767435971064,0.000999,89756.0,89754.0,0.01114156]
[1767435971468,0.01114069,89761.0,89754.0,0.01114156]
[1767435971622,0.01114081,89760.0,89755.0,0.01114144]
[1767435971817,0.01114069,89761.0,89755.0,0.01114144]
[1767435972223,0.01114069,89761.0,89756.0,0.01114131]
[1767435972437,0.01114081,89760.0,89755.0,0.01114144]
[1767435972690,0.01114069,89761.0,89755.0,0.01114144]
[1767435972989,0.01114094,89759.0,89754.0,0.01114156]
[1767435973119,0.000999,89755.0,89754.0,0.01114156]
[1767435973321,0.05571066,89750.0,89743.0,0.01116]
[1767435973568,0.01114255,89746.0,89743.0,0.01116]
[1767435973955,0.01114268,89745.0,89740.0,0.0111433]
[1767435974579,0.01114255,89746.0,89740.0,0.0111433]
[1767435974811,0.01114268,89745.0,89740.0,0.0111433]
[1767435975612,0.0111428,89744.0,89739.0,0.01114342]
[1767435975822,0.01114268,89745.0,89738.0,0.02230355]
[1767435976035,0.0111428,89744.0,89739.0,0.01114342]
[1767435976239,0.01114268,89745.0,89740.0,0.0111433]
[1767435976449,0.06685594,89746.0,89741.0,0.01114317]
[1767435976649,0.01114268,89745.0,89740.0,0.0111433]
[1767435977446,0.01114255,89746.0,89741.0,0.01114317]
[1767435978987,0.01114255,89746.0,89740.0,0.0111433]
[1767435979183,0.01114255,89746.0,89741.0,0.01114317]
[1767435980498,0.01114268,89745.0,89739.0,0.01114342]
[1767435980699,0.01114255,89746.0,89739.0,0.01114342]
[1767435981059,0.01114255,89746.0,89741.0,0.01114317]
[1767435981271,0.01114243,89747.0,89742.0,0.01114305]
[1767435981812,0.51796384,89760.0,89742.0,0.01114305]
[1767435981813,0.066851,89752.0,89742.0,0.01114305]
[1767435981953,0.01114206,89750.0,89744.0,0.0111428]
[1767435982156,0.01114193,89751.0,89746.0,0.01114255]
[1767435982619,0.02230181,89752.0,89747.0,0.01114243]
[1767435982878,0.01116,89752.0,89747.0,0.01114243]
[1767435983627,0.01114193,89751.0,89746.0,0.01114255]
[1767435984012,0.01114193,89751.0,89745.0,0.01114268]
[1767435984791,0.01114193,89751.0,89746.0,0.01114255]
[1767435985887,0.01114206,89750.0,89745.0,0.01114268]
[1767435988608,0.01114193,89751.0,89746.0,0.01114255]
[1767435989223,0.01114206,89750.0,89745.0,0.01114268]
[1767435989722,0.01114193,89751.0,89746.0,0.01114255]
[1767435993443,0.01114206,89750.0,89745.0,0.01114268]
[1767435994303,0.01150166,89751.0,89746.0,0.01114255]
[1767435994494,0.01150166,89751.0,89745.0,0.01114268]
[1767435995113,0.01114206,89750.0,89745.0,0.01114268]
[1767435996123,0.01114218,89749.0,89744.0,0.06685645]
[1767435996652,0.01114206,89750.0,89745.0,0.01114268]
[1767435996804,0.01150166,89751.0,89746.0,0.01114255]
[1767435997411,0.00035973,89751.0,89746.0,0.01114255]
[1767435998364,0.00035973,89751.0,89747.0,0.01114243]
[1767435999731,0.01150166,89751.0,89746.0,0.01114255]
[1767436003384,0.01114206,89750.0,89745.0,0.01114268]
[1767436003579,0.01150166,89751.0,89746.0,0.01114255]
[1767436004128,0.00035973,89751.0,89747.0,0.01114243]
[1767436004284,0.01150166,89751.0,89746.0,0.01114255]
[1767436004484,0.00035973,89751.0,89747.0,0.01114243]
[1767436005630,0.00035973,89751.0,89748.0,0.0111423]
[1767436006161,0.00035973,89751.0,89747.0,0.01114243]
[1767436011837,0.01150166,89751.0,89746.0,0.01114255]
[1767436012996,0.00035973,89751.0,89747.0,0.01114243]
[1767436013223,0.01150166,89751.0,89746.0,0.01114255]
[1767436013575,0.00035973,89751.0,89747.0,0.01114243]
[1767436014880,0.000999,89747.0,89745.0,0.01114268]
[1767436015303,0.01114218,89749.0,89745.0,0.01114268]
[1767436015825,0.01114243,89747.0,89742.0,0.03344486]
[1767436015998,0.000999,89745.0,89742.0,0.03344486]
[1767436016400,0.01114243,89747.0,89742.0,0.03344486]
[1767436017248,0.01114243,89747.0,89742.0,0.03244586]
[1767436017689,0.0111423,89748.0,89742.0,0.03244586]
[1767436018538,0.01114243,89747.0,89743.0,0.01114293]
[1767436018739,0.0111423,89748.0,89743.0,0.01114293]
[1767436019536,0.01114243,89747.0,89742.0,0.03244586]
[1767436020039,0.0111423,89748.0,89743.0,0.01114293]
[1767436020576,0.01114268,89745.0,89742.0,0.00494176]
[1767436020857,0.01114268,89745.0,89739.0,0.01114342]
[1767436021059,0.01114268,89745.0,89741.0,0.01114317]
[1767436021262,0.06685533,89746.0,89741.0,0.01114317]
[1767436021263,0.01114255,89746.0,89741.0,0.01114317]
[1767436022122,0.05810269,89746.0,89739.0,0.03704543]
[1767436022325,0.05571881,89737.0,89735.0,0.00049515]
[1767436022526,0.01116,89736.0,89729.0,0.01114466]
[1767436022734,0.01114404,89734.0,89729.0,0.01114466]
[1767436023051,0.01114404,89734.0,89725.0,0.06687062]
[1767436023052,0.01114429,89732.0,89726.0,0.01114504]
[1767436023208,0.01114417,89733.0,89728.0,0.01114479]
[1767436023569,0.01014504,89734.0,89729.0,0.01114466]
[1767436023724,0.01014504,89734.0,89728.0,0.01114479]
[1767436023929,0.01014504,89734.0,89729.0,0.01114466]
[1767436024149,0.01114417,89733.0,89728.0,0.01114479]
[1767436024364,0.01114429,89732.0,89727.0,0.01114491]
[1767436024690,0.01114392,89735.0,89727.0,0.01114491]
[1767436024832,0.01114392,89735.0,89727.0,0.06686902]
[1767436025641,0.01114392,89735.0,89729.0,0.01114466]
[1767436026193,0.01114417,89733.0,89728.0,0.01114479]
[1767436026318,0.01114429,89732.0,89727.0,0.01114491]
[1767436026523,0.01114417,89733.0,89728.0,0.01114479]
[1767436027807,0.01114404,89734.0,89729.0,0.01114466]
[1767436028219,0.01114404,89734.0,89728.0,0.01114479]
[1767436029472,0.01114417,89733.0,89728.0,0.01114479]
[1767436030366,0.01114404,89734.0,89729.0,0.01114466]
[1767436030588,0.01114404,89734.0,89730.0,0.01114454]
[1767436030787,0.01114392,89735.0,89730.0,0.01114454]
[1767436031774,0.01114404,89734.0,89729.0,0.01114466]
[1767436031987,0.01114429,89732.0,89727.0,0.01114491]
[1767436033438,0.01114417,89733.0,89728.0,0.01114479]
[1767436033805,0.01114404,89734.0,89729.0,0.01114466]
[1767436034600,0.01114392,89735.0,89730.0,0.01114454]
[1767436034809,0.01114404,89734.0,89730.0,0.01114454]
[1767436035195,0.01114404,89734.0,89729.0,0.01114466]
[1767436036407,0.01114392,89735.0,89730.0,0.01114454]
[1767436036607,0.01114404,89734.0,89729.0,0.01114466]
[1767436038162,0.01114404,89734.0,89729.0,0.06258799]
[1767436039024,0.01114417,89733.0,89729.0,0.05144333]
[1767436039493,0.01114404,89734.0,89729.0,0.06258799]
[1767436039661,0.01114392,89735.0,89729.0,0.06258799]
[1767436039903,0.01116,89736.0,89730.0,0.01114454]
[1767436040104,0.01114392,89735.0,89730.0,0.01114454]
[1767436040252,0.01116,89736.0,89731.0,0.01114442]
[1767436040455,0.02230379,89736.0,89731.0,0.01114442]
[1767436040677,0.02230379,89736.0,89732.0,0.01114429]
[1767436040893,0.01116,89736.0,89732.0,0.01114429]
[1767436044734,0.01116,89736.0,89733.0,0.01114417]
[1767436045543,0.01116,89736.0,89732.0,0.01114429]
[1767436046738,0.01116,89736.0,89733.0,0.01114417]
[1767436047550,0.000999,89733.0,89732.0,0.01114429]
[1767436047754,0.01116,89736.0,89733.0,0.01114417]
[1767436048057,0.01116,89736.0,89732.0,0.01114429]
[1767436048253,0.02230379,89736.0,89732.0,0.01114429]
[1767436048453,0.02230379,89736.0,89731.0,0.01114442]
[1767436048622,0.01116,89736.0,89732.0,0.01114429]
[1767436049417,0.02230379,89736.0,89729.0,0.06258799]
[1767436049618,0.000999,89732.0,89729.0,0.06258799]
[1767436049825,0.01114392,89735.0,89730.0,0.01114454]
[1767436051660,0.01114392,89735.0,89731.0,0.01114442]
[1767436051858,0.01114392,89735.0,89730.0,0.01114454]
[1767436052270,0.01114404,89734.0,89729.0,0.06258799]
[1767436052676,0.01114392,89735.0,89730.0,0.01114454]
[1767436052900,0.01114392,89735.0,89731.0,0.01114442]
[1767436053102,0.01114392,89735.0,89730.0,0.01114454]
[1767436055756,0.01114392,89735.0,89731.0,0.01114442]
[1767436056034,0.02230379,89736.0,89731.0,0.01114442]
[1767436056247,0.01114392,89735.0,89731.0,0.01114442]
[1767436056383,0.02230379,89736.0,89731.0,0.01114442]
[1767436057544,0.01114392,89735.0,89730.0,0.01114454]
[1767436057688,0.02230379,89736.0,89731.0,0.01114442]
[1767436059016,0.02230379,89736.0,89730.0,0.01114454]
[1767436059017,0.01114392,89735.0,89730.0,0.01114454]
[1767436059907,0.01114392,89735.0,89731.0,0.01114442]
[1767436061670,0.01114392,89735.0,89730.0,0.01114454]
[1767436061878,0.01114392,89735.0,89731.0,0.01114442]
[1767436062184,0.01114392,89735.0,89730.0,0.01114454]
[1767436062586,0.01114392,89735.0,89731.0,0.01114442]
[1767436062750,0.01114404,89734.0,89729.0,0.05794289]
[1767436062949,0.01114404,89734.0,89730.0,0.01114454]
[1767436063162,0.01114392,89735.0,89730.0,0.01114454]
[1767436065297,0.01114404,89734.0,89729.0,0.05794289]
[1767436067507,0.01114392,89735.0,89730.0,0.01114454]
[1767436067706,0.01114404,89734.0,89729.0,0.05794289]
[1767436067905,0.01114392,89735.0,89730.0,0.01114454]
[1767436069570,0.01114392,89735.0,89729.0,0.05794289]
[1767436070110,0.01114404,89734.0,89729.0,0.04679823]
[1767436070272,0.01114404,89734.0,89729.0,0.05794289]
[1767436071096,0.01114404,89734.0,89729.0,0.04679823]
[1767436072627,0.01114392,89735.0,89729.0,0.04679823]
[1767436073127,0.01114392,89735.0,89729.0,0.05794289]
[1767436073643,0.01114392,89735.0,89729.0,0.04679823]
[1767436073846,0.01114392,89735.0,89729.0,0.05794289]
[1767436074264,0.02230379,89736.0,89729.0,0.05794289]
[1767436074635,0.01116,89736.0,89730.0,0.01114454]
[1767436075022,0.01116,89736.0,89731.0,0.01114442]
[1767436075262,0.01116,89736.0,89731.0,0.05794265]
[1767436080948,0.01116,89736.0,89732.0,0.01114429]
[1767436081395,0.01116,89736.0,89731.0,0.05794265]
[1767436081588,0.01116,89738.0,89733.0,0.05907107]
[1767436081875,0.01116,89739.0,89738.0,0.0479269]
[1767436082496,0.01116,89739.0,89733.0,0.05907107]
[1767436082695,0.000999,89738.0,89733.0,0.0479269]
[1767436082898,0.01114355,89738.0,89733.0,0.0479269]
[1767436083832,0.02230342,89739.0,89733.0,0.0479269]
[1767436084034,0.02230342,89739.0,89733.0,0.05907107]
[1767436085355,0.01116,89739.0,89735.0,0.05907082]
[1767436085557,0.02230305,89742.0,89735.0,0.0479269]
[1767436086297,0.0111433,89740.0,89735.0,0.0479269]
[1767436086921,0.01114342,89739.0,89735.0,0.0479269]
[1767436087121,0.0111433,89740.0,89735.0,0.0479269]
[1767436087557,0.01114317,89741.0,89735.0,0.0479269]
[1767436087847,0.0111433,89740.0,89735.0,0.0479269]
[1767436088090,0.01114317,89741.0,89735.0,0.0479269]
[1767436088250,0.0111433,89740.0,89735.0,0.0479269]
[1767436088459,0.01114317,89741.0,89735.0,0.0479269]
[1767436088750,0.0111433,89740.0,89735.0,0.0479269]
[1767436089962,0.01114342,89739.0,89735.0,0.0479269]
[1767436090163,0.0780187,89742.0,89741.0,0.0479269]
[1767436090339,0.0780187,89742.0,89741.0,0.0469279]
[1767436091625,0.02992457,89764.0,89741.0,0.0469279]
[1767436091626,0.0111423,89748.0,89743.0,0.0479269]
[1767436091828,0.01116,89750.0,89747.0,0.01114243]
[1767436092028,0.01116,89755.0,89748.0,0.0111423]
[1767436092228,0.01114094,89759.0,89748.0,0.0111423]
[1767436092432,0.01116,89755.0,89748.0,0.0111423]
[1767436092850,7.3e-07,89751.0,89748.0,0.06685384]
[1767436093936,7.3e-07,89751.0,89748.0,0.0111423]
[1767436094132,7.3e-07,89751.0,89746.0,0.01114255]
[1767436094359,0.000359,89746.0,89742.0,0.06685775]
[1767436094761,0.01114206,89750.0,89744.0,0.0111428]
[1767436095373,0.01114266,89751.0,89745.0,0.01114268]
[1767436096207,0.01114206,89750.0,89744.0,0.0111428]
[1767436096753,0.01114266,89751.0,89745.0,0.01114268]
[1767436096956,0.01114266,89751.0,89744.0,0.0111428]
[1767436097410,0.01114266,89751.0,89745.0,0.01114268]
[1767436097411,7.3e-07,89751.0,89745.0,0.01114268]
[1767436097615,0.01114266,89751.0,89745.0,0.01114268]
[1767436098623,7.3e-07,89751.0,89747.0,0.01114243]
[1767436098921,7.3e-07,89751.0,89746.0,0.01114255]
[1767436099389,0.01114266,89751.0,89745.0,0.01114268]
[1767436099791,0.01114206,89750.0,89744.0,0.0111428]
[1767436100726,0.01114266,89751.0,89744.0,0.0111428]
[1767436100933,0.01114266,89751.0,89745.0,0.01114268]
[1767436101134,0.01114206,89750.0,89745.0,0.01114268]
[1767436101638,0.01114206,89750.0,89744.0,0.0111428]
[1767436102040,0.01114266,89751.0,89745.0,0.01114268]
[1767436102706,0.01114206,89750.0,89743.0,0.01114293]
[1767436102907,0.01114206,89750.0,89744.0,0.0111428]
[1767436103348,0.01114218,89749.0,89742.0,0.01114305]
[1767436103523,0.0111423,89748.0,89741.0,0.02230317]
[1767436104297,0.01114243,89747.0,89741.0,0.02230317]
[1767436104498,0.0111423,89748.0,89742.0,0.01114305]
[1767436105859,0.01114218,89749.0,89743.0,0.01114293]
[1767436107560,0.01114206,89750.0,89744.0,0.0111428]
[1767436107724,0.01114218,89749.0,89743.0,0.01114293]
[1767436107928,0.000359,89743.0,89740.0,0.29511067]
[1767436108133,0.000359,89743.0,89739.0,0.01114342]
[1767436108519,0.0111423,89748.0,89742.0,0.01114305]
[1767436108952,0.01114243,89747.0,89740.0,0.0111433]
[1767436109157,0.01114243,89747.0,89742.0,0.01114305]
[1767436109553,0.01114243,89747.0,89741.0,0.01114317]
[1767436109755,0.01114243,89747.0,89742.0,0.01114305]
[1767436109960,0.01114243,89747.0,89741.0,0.01114317]
[1767436110361,0.01114243,89747.0,89742.0,0.01114305]
[1767436110566,0.0111423,89748.0,89742.0,0.01114305]
[1767436110726,0.01114243,89747.0,89741.0,0.01114317]
[1767436110927,0.0111423,89748.0,89742.0,0.01114305]
[1767436111350,0.01114268,89745.0,89739.0,0.01114342]
[1767436111606,0.01114255,89746.0,89740.0,0.0111433]
[1767436112389,0.01114268,89745.0,89738.0,0.01114355]
[1767436112571,0.01114268,89745.0,89739.0,0.01114342]
[1767436113413,0.01114255,89746.0,89740.0,0.0111433]
[1767436113714,0.01114268,89745.0,89736.0,0.02230379]
[1767436113916,0.000359,89740.0,89736.0,0.02230379]
[1767436114088,0.01114317,89741.0,89736.0,0.01116]
[1767436114460,0.01114293,89743.0,89736.0,0.02230379]
[1767436114461,0.01114305,89742.0,89736.0,0.02230379]
[1767436114806,0.01114317,89741.0,89736.0,0.01116]
[1767436115418,0.0111433,89740.0,89736.0,0.01116]
[1767436118081,0.01114317,89741.0,89736.0,0.01116]
[1767436119355,0.0111433,89740.0,89736.0,0.01116]
[1767436124931,0.01114317,89741.0,89736.0,0.01116]
[1767436125136,0.01114305,89742.0,89741.0,0.00064]
[1767436125647,0.01114305,89742.0,89736.0,0.01116]
[1767436125867,0.01114342,89739.0,89736.0,0.010801]
[1767436127394,0.01114317,89741.0,89736.0,0.010801]
[1767436127614,0.0111433,89740.0,89736.0,0.010801]
[1767436129177,0.01114317,89741.0,89736.0,0.010801]
[1767436129649,0.01114305,89742.0,89736.0,0.02194479]
[1767436129829,0.01014405,89742.0,89736.0,0.02194479]
[1767436130166,0.06685795,89743.0,89736.0,0.02194479]
[1767436130318,0.06685795,89743.0,89736.0,0.010801]
[1767436130319,0.01114305,89742.0,89736.0,0.010801]
[1767436131242,0.0111428,89744.0,89737.0,0.01114367]
[1767436131397,0.01114293,89743.0,89736.0,0.06903506]
[1767436131596,0.0111428,89744.0,89737.0,0.01114367]
[1767436132018,0.01114268,89745.0,89738.0,0.01114355]
[1767436132235,0.01114268,89745.0,89737.0,0.01114367]
[1767436132614,0.01114268,89745.0,89738.0,0.01114355]
[1767436133004,0.01114268,89745.0,89737.0,0.01114367]
[1767436134142,0.0111428,89744.0,89736.0,0.06903506]
[1767436134341,0.0111428,89744.0,89736.0,0.05789127]
[1767436134745,0.01114293,89743.0,89736.0,0.05789127]
[1767436135078,0.0111428,89744.0,89736.0,0.05789127]
[1767436135256,0.01114293,89743.0,89736.0,0.010801]
[1767436136456,0.01114305,89742.0,89736.0,0.010801]
[1767436138084,0.01114293,89743.0,89736.0,0.010801]
[1767436139709,0.01114305,89742.0,89736.0,0.010801]
[1767436140211,0.01114317,89741.0,89736.0,0.010801]
[1767436140425,0.0111433,89740.0,89736.0,0.010801]
[1767436140732,0.000999,89736.0,89734.0,0.01116]
[1767436140942,0.01114342,89739.0,89734.0,0.01116]
[1767436141142,0.01114355,89738.0,89734.0,0.01116]
[1767436141346,0.01114342,89739.0,89734.0,0.01116]
[1767436141793,0.01114342,89739.0,89734.0,0.010161]
[1767436141956,0.0111433,89740.0,89734.0,0.010161]
[1767436142394,0.05571442,89744.0,89740.0,0.000999]
[1767436142524,0.05571442,89744.0,89734.0,0.010161]
[1767436142525,0.0111433,89740.0,89734.0,0.010161]
[1767436143440,0.01114342,89739.0,89734.0,0.010161]
[1767436143673,0.01114355,89738.0,89734.0,0.010161]
[1767436144427,0.01114367,89737.0,89734.0,0.010161]
[1767436144602,0.01114379,89736.0,89731.0,0.01116]
[1767436144792,0.01114367,89737.0,89731.0,0.01116]
[1767436145207,0.06686175,89738.0,89731.0,0.01116]
[1767436145497,0.01114342,89739.0,89731.0,0.01116]
[1767436145704,0.01114317,89741.0,89731.0,0.01116]
[1767436145860,0.01114317,89741.0,89739.0,0.000999]
[1767436146061,0.01114317,89741.0,89732.0,0.01114429]
[1767436146062,0.01114317,89741.0,89733.0,0.01114417]
[1767436146382,0.01114305,89742.0,89733.0,0.01114417]
[1767436146700,0.0111433,89740.0,89732.0,0.01114429]
[1767436147201,0.01114317,89741.0,89732.0,0.01114429]
[1767436147556,0.0111433,89740.0,89731.0,0.02230442]
[1767436147990,0.01114342,89739.0,89731.0,0.01116]
[1767436149726,0.01114342,89739.0,89731.0,0.02230442]
[1767436150130,0.0111433,89740.0,89731.0,0.02230442]
[1767436152700,0.0111433,89740.0,89732.0,0.01114429]
[1767436153742,0.01114317,89741.0,89732.0,0.01114429]
[1767436155174,0.0111433,89740.0,89732.0,0.01114429]
[1767436156072,0.0111433,89740.0,89731.0,0.02230442]
[1767436156616,0.01114342,89739.0,89731.0,0.02230442]
[1767436157209,0.06685885,89742.0,89732.0,0.01114429]
[1767436157614,0.01114317,89741.0,89732.0,0.01114429]
[1767436160130,0.0111433,89740.0,89731.0,0.02230442]
[1767436160289,0.01114317,89741.0,89733.0,0.01114417]
[1767436160491,0.01114317,89741.0,89732.0,0.01114429]
[1767436160813,0.0111433,89740.0,89732.0,0.01114429]
[1767436161762,0.01114317,89741.0,89732.0,0.01114429]
[1767436162521,0.0111433,89740.0,89732.0,0.01114429]
[1767436163469,0.01114317,89741.0,89732.0,0.01114429]
[1767436165498,0.01114317,89741.0,89733.0,0.01114417]
[1767436165754,0.01114305,89742.0,89733.0,0.01114417]
[1767436166918,0.01114293,89743.0,89734.0,0.01114404]
[1767436167126,0.01114317,89741.0,89733.0,0.05016998]
[1767436168511,0.0111433,89740.0,89732.0,0.01114429]
[1767436168846,0.01114317,89741.0,89732.0,0.01114429]
[1767436169493,0.01114317,89741.0,89731.0,0.07802616]
[1767436169494,0.0111433,89740.0,89731.0,0.07802616]
[1767436169619,0.01114342,89739.0,89731.0,0.02230442]
[1767436169820,0.0111433,89740.0,89731.0,0.02230442]
[1767436170021,0.0111433,89740.0,89732.0,0.01114429]
[1767436171869,0.0111433,89740.0,89731.0,0.02230442]
[1767436172051,0.0111433,89740.0,89732.0,0.01114429]
[1767436173262,0.01114317,89741.0,89732.0,0.01114429]
[1767436174360,0.0111433,89740.0,89731.0,0.02230442]
[1767436175167,0.01114317,89741.0,89731.0,0.02230442]
[1767436175459,0.0111433,89740.0,89732.0,0.01114429]
[1767436176674,0.01114317,89741.0,89732.0,0.01114429]
[1767436177716,0.01114268,89745.0,89732.0,0.04896141]
[1767436177916,0.01114255,89746.0,89741.0,0.000999]
[1767436178343,0.01114255,89746.0,89737.0,0.01114367]
[1767436178539,0.01114268,89745.0,89736.0,0.01114379]
[1767436178756,0.01164131,89744.0,89735.0,0.01114392]
[1767436179077,0.01164131,89744.0,89736.0,0.01114379]
[1767436179613,0.01164131,89744.0,89735.0,0.01114392]
[1767436180219,0.00049851,89744.0,89736.0,0.01114379]
[1767436180819,0.00049851,89744.0,89737.0,0.01114367]
[1767436181500,0.00049851,89744.0,89736.0,0.01114379]
[1767436184509,0.01164131,89744.0,89735.0,0.01114392]
[1767436184738,0.00049851,89744.0,89736.0,0.01114379]
[1767436189567,0.01114293,89743.0,89735.0,0.01114392]
[1767436190133,0.01114293,89743.0,89734.0,0.01114404]
[1767436190735,0.01114293,89743.0,89735.0,0.01114392]
[1767436190917,0.01114305,89742.0,89733.0,0.01114417]
[1767436191123,0.01114305,89742.0,89734.0,0.01114404]
[1767436192785,0.01114305,89742.0,89733.0,0.01114417]
[1767436193390,0.01114305,89742.0,89732.0,0.01114429]
[1767436193703,0.01114317,89741.0,89733.0,0.01114417]
[1767436193985,0.01114317,89741.0,89732.0,0.01114429]
[1767436194191,0.0111433,89740.0,89732.0,0.01114429]
[1767436195085,0.01114317,89741.0,89732.0,0.01114429]
[1767436195244,0.01114317,89741.0,89733.0,0.01114417]
[1767436195440,0.01114317,89741.0,89731.0,0.02230255]
[1767436195441,0.0111433,89740.0,89731.0,0.02230255]
[1767436195755,0.00049851,89744.0,89727.0,0.01116]
[1767436195756,0.04753543,89732.0,89727.0,0.01116]
[1767436195956,0.04653643,89732.0,89727.0,0.0223033]
[1767436196233,0.00015,89766.0,89744.0,0.04896141]
[1767436196435,0.24069802,89836.0,89785.0,0.04151197]
[1767436196596,0.17940239,89793.0,89777.0,0.01113871]
[1767436196810,0.14596841,89793.0,89782.0,0.01113809]
[1767436197021,0.2963733,89807.0,89790.0,0.01113709]
[1767436197022,0.04753543,89799.0,89790.0,0.01113709]
[1767436197236,0.04753543,89797.0,89794.0,0.0111366]
[1767436197401,0.04753543,89797.0,89793.0,0.000999]
[1767436197600,0.04753543,89797.0,89788.0,0.01113734]
[1767436197806,0.04753543,89797.0,89787.0,0.01113746]
[1767436198162,0.04753543,89794.0,89782.0,0.02402851]
[1767436198322,0.01116,89793.0,89786.0,0.01113759]
[1767436198505,0.01116,89793.0,89788.0,0.01113734]
[1767436198703,0.01116,89793.0,89786.0,0.01113759]
[1767436198925,0.01140977,89793.0,89787.0,0.01113746]
[1767436199129,0.00024977,89792.0,89789.0,0.01113722]
[1767436199728,0.00024977,89792.0,89788.0,0.01113734]
[1767436199949,0.00024977,89792.0,89789.0,0.01113722]
[1767436200670,0.01153486,89808.0,89794.0,0.0111366]
[1767436200800,0.00049098,89806.0,89798.0,0.0111361]
[1767436201003,0.00049098,89806.0,89798.0,0.0110961]
[1767436201224,0.01162609,89806.0,89797.0,0.01113622]
[1767436201628,0.00073253,89805.0,89796.0,0.01113635]
[1767436201837,0.00073253,89805.0,89797.0,0.01113622]
[1767436202030,0.01113548,89803.0,89795.0,0.01113647]
[1767436202303,0.00097131,89802.0,89795.0,0.01113647]
[1767436202812,0.01113548,89803.0,89787.0,0.01113746]
[1767436202813,0.00097131,89796.0,89787.0,0.01113746]
[1767436203015,0.01116,89795.0,89789.0,0.01113722]
[1767436203310,0.01116,89795.0,89787.0,0.01113746]
[1767436203551,0.01116,89795.0,89789.0,0.01113722]
[1767436203950,0.01116,89795.0,89788.0,0.01113734]
[1767436204085,0.01116,89795.0,89789.0,0.01113722]
[1767436204296,0.01116,89795.0,89787.0,0.01113746]
[1767436205059,0.02229647,89795.0,89787.0,0.01113746]
[1767436205345,0.01116,89795.0,89787.0,0.01113746]
[1767436205553,0.01116,89795.0,89783.0,0.01113796]
[1767436206247,0.01113672,89793.0,89784.0,0.01113784]
[1767436207223,0.01113672,89793.0,89785.0,0.01113771]
[1767436207430,0.01113672,89793.0,89784.0,0.01113784]
[1767436208548,0.01113684,89792.0,89783.0,0.01113796]
[1767436208748,0.01113697,89791.0,89780.0,0.01113833]
[1767436208967,0.01113697,89791.0,89783.0,0.01113796]
[1767436209296,0.01113796,89783.0,89776.0,0.01113746]
[1767436209496,0.01113796,89783.0,89775.0,0.01113895]
[1767436209881,0.02229784,89784.0,89783.0,0.000999]
[1767436210281,0.01113809,89782.0,89774.0,0.01113908]
[1767436210481,0.01113809,89782.0,89773.0,0.0111392]
[1767436210729,0.01113809,89782.0,89774.0,0.01113908]
[1767436210928,0.02229821,89781.0,89775.0,0.02385927]
[1767436211090,0.02229821,89781.0,89776.0,0.02385927]
[1767436211288,0.01116,89781.0,89777.0,0.02385927]
[1767436211485,0.01116,89781.0,89778.0,0.02385927]
[1767436211673,0.01116,89781.0,89779.0,0.02385927]
[1767436211872,0.010161,89781.0,89780.0,0.02385927]
[1767436213900,0.01113771,89785.0,89781.0,0.00066825]
[1767436214101,0.01116,89784.0,89782.0,0.02385927]
[1767436214311,0.01116,89784.0,89783.0,0.02385927]
[1767436215548,0.01116,89784.0,89783.0,0.02286027]
[1767436216883,0.010161,89784.0,89783.0,0.02286027]
[1767436220564,0.01116,89784.0,89783.0,0.02286027]
[1767436220759,0.06682596,89786.0,89783.0,0.02286027]
[1767436220960,0.02229784,89784.0,89781.0,0.00066825]
[1767436221794,0.01116,89784.0,89781.0,0.00066825]
[1767436222092,0.02229784,89784.0,89781.0,0.00066825]
[1767436224206,0.01116,89784.0,89781.0,0.00066825]
[1767436224860,0.02229784,89784.0,89781.0,0.00066825]
[1767436225281,0.01116,89783.0,89781.0,0.00066825]
[1767436225487,0.0299934,89782.0,89781.0,0.00066825]
[1767436225691,0.0299934,89782.0,89781.0,0.05045723]